Cogmind - Beta 13 @@@ ROGUE MODE // 2024.04.08 @ 23:08:47 Player: Ferns Result: Destroyed by as-70608 with Assembled Blade Performance ------------- Evolutions (0) 0 Regions Visited (2) 400 Robots Destroyed (14) 70 Value Destroyed (255) 255 Prototype IDs (0) 0 Alien Tech Used (0) 0 Bonus (-16) -16 TOTAL SCORE: 709 Bonus ------- Friendly Fire -16 Cogmind --------- Core Integrity 0/250 Matter 156/300 Energy 100/100 System Corruption 3% Temperature Cool (0) Movement Rolling (90) Location -10/Mines Parts ------- > --- POWER (1) -------- (None) > --- PROPULSION (2) --- Wheel Compact Wheel > --- UTILITY (2) ------ Large Storage Unit Signal Interpreter > --- WEAPON (2) ------- EMP Blaster > --- INVENTORY (15) --- Ion Engine Light Nuclear Core Heat Sink Small Storage Unit High-capacity Battery (250) Sensor Array Seismic Detector Heavy Assault Rifle Heavy Assault Rifle Heavy Assault Rifle EMP Blaster EMP Blaster EMP Blaster Peak State ------------ > --- POWER ------------ Light Nuclear Core > --- PROPULSION ------- Wheel Compact Wheel > --- UTILITY ---------- Large Storage Unit Seismic Detector > --- WEAPON ----------- Heavy Assault Rifle Heavy Assault Rifle > --- INVENTORY -------- Ion Engine Ion Engine Wheel Compact Wheel Small Storage Unit High-capacity Battery Sensor Array Signal Interpreter Heavy Assault Rifle Heavy Assault Rifle EMP Blaster EMP Blaster EMP Blaster EMP Blaster [Rating: 13] Favorites ----------- Power Light Nuclear Core Engine Ion Engine Power Core Light Nuclear Core Propulsion Wheel Wheel Wheel Utility Seismic Detector Device Seismic Detector Storage Large Storage Unit Processor Signal Interpreter Weapon Assault Rifle Ballistic Gun Assault Rifle Launcher EMP Blaster Build | -11 -10 -10 ------- Run | Yrd Mat Min Slots Evolved . | . . . Power . | . . . Propulsion . | . . . Utility . | . . . Weapon . | . . . Parts Attached 18 | 7 8 3 Power 2 | 1 1 . Engine 1 | 1 . . Core 1 | . 1 . Reactor . | . . . Propulsion 5 | 2 1 2 Treads . | . . . Leg . | . . . Wheel 5 | 2 1 2 Hover . | . . . Flight . | . . . Utility 5 | 2 3 . Device 2 | 1 1 . Storage 2 | 1 1 . Processor 1 | . 1 . Hackware . | . . . Protection . | . . . Artifact . | . . . Weapon 6 | 2 3 1 Energy Gun . | . . . Energy Cannon . | . . . Ballistic Gun 5 | 2 3 . Ballistic Cannon . | . . . Launcher 1 | . . 1 Special Weapon . | . . . Impact Weapon . | . . . Slashing Weapon . | . . . Piercing Weapon . | . . . Special Melee Weapon . | . . . Unidentified Prototypes . | . . . Parts Lost 5 | . 1 4 Power 1 | . . 1 Propulsion 3 | . 1 2 Utility . | . . . Weapon 1 | . . 1 Highest Loss Streak 4 | . 1 4 To Critical Strikes . | . . . Average Slot Usage (%) 97 | . 97 100 Engine 3 | . 5 . Core 10 | . 8 14 Wheel 26 | . 25 28 Device 8 | . 10 . Storage 14 | . 14 14 Processor 5 | . 2 14 Ballistic Gun 28 | . 28 28 Naked Turns . | . . . Heaviest Build 32 | 15 32 31 Greatest Support 26 | 20 26 26 Greatest Overweight (x) 3 | 3 1 3 Average Overweight (x) . | . . 1 Largest Inventory Capacity 15 | 8 15 15 Average Capacity 11 | 7 11 15 Most Carried 15 | 2 15 15 Average Carried 8 | 1 7 14 Final Capacity 15 | 8 15 15 Final Carried 14 | 2 14 13 Class Distribution -------------------- 100% | Mutant Dominant Class ---------------- Mutant | -10/Materials Mutant | -10/Mines Resources | -11 -10 -10 ----------- Run | Yrd Mat Min Matter Collected 473 | 183 184 106 Remotely . | . . . Salvage Created 495 | 19 295 181 Parts 32 | 3 17 12 Haulers Intercepted 1 | . 1 . Recyclers Shooed 2 | . . 2 Parts Field Recycled . | . . . Retrieved Matter . | . . . Parts Self-Destructed . | . . . Prevented . | . . . Kills | -11 -10 -10 ------- Run | Yrd Mat Min Combat Hostiles Destroyed 8 | . 6 2 Guns 7 | . 6 1 AOE 1 | . . 1 Classes Destroyed 6 | 1 4 1 Tunneler 1 | 1 . . Hauler 1 | . 1 . Recycler 2 | . . 2 Watcher 2 | . 2 . Swarmer 4 | . 3 1 Grunt 4 | . 3 1 Best Kill Streak 5 | 1 5 3 Combat Bots Only 5 | . 5 1 Max Kills in Single Turn 3 | 1 1 3 Gunslinging . | . . . Exploded 1 | . . 1 Melee . | . . . Uniques/NPCs Destroyed . | . . . Combat | -11 -10 -10 -------- Run | Yrd Mat Min Hostile Shots Fired 98 | . 47 51 Missed 25 | . 14 11 Damage Taken 858 | . 379 479 Core 269 | . 128 141 Absorbed by Shields . | . . . Core Remaining (%) 100 | 100 . . Volleys Fired 40 | 2 29 9 Largest 2 | 2 2 2 Hottest 46 | 40 46 46 Shots Fired 79 | 4 58 17 Gun 77 | 4 58 15 Cannon . | . . . Launcher 2 | . . 2 Special . | . . . Kinetic 77 | 4 58 15 Thermal . | . . . Explosive . | . . . Electromagnetic 2 | . . 2 Robot Hit Streak 9 | 2 9 3 Robot Miss Streak 4 | 1 3 4 Penetration Max . | . . . Secondary Targets 1 | . 1 . Max Gunslinging Chain 1 | . 1 . Shots Hit Robots 44 | 3 36 5 Core Hits 22 | 1 16 5 Critical Kills . | . . . Critical Parts Destroyed 1 | . 1 . Critical Strikes 1 | . 1 . Destroy 1 | . 1 . Melee Attacks . | . . . Impact . | . . . Slashing . | . . . Piercing . | . . . Sneak Attacks . | . . . Combat Hostiles . | . . . Follow-up Attacks . | . . . Damage Inflicted 766 | 39 505 222 Guns 641 | 39 505 97 Cannons . | . . . Explosions 125 | . . 125 Melee . | . . . Ramming . | . . . Kinetic 641 | 39 505 97 Thermal 103 | . . 103 Explosive . | . . . Electromagnetic 22 | . . 22 Impact . | . . . Slashing . | . . . Piercing . | . . . Highest Corruption 3 | . 2 3 Average Corruption 2 | . 2 2 Corruption Purged . | . . . Corruption Blocked . | . . . Effects 8 | . 5 3 Message Errors 2 | . 2 . Matter Fused 3 | . 3 . Data Loss (minor) 2 | . . 2 Misfires 1 | . . 1 Overload Shots . | . . . Overflow Damage . | . . . Projectiles . | . . . Explosions . | . . . Melee . | . . . Knockbacks . | . . . Impact . | . . . Kinetic . | . . . Secondary . | . . . Self-Inflicted Damage . | . . . Shots . | . . . Rammed . | . . . Targets Rammed . | . . . Kicked . | . . . Crushed . | . . . Highest Temperature 6 | . 6 3 Average Temperature 2 | . 2 2 Received Heat Transfer 200 | . 159 41 Siege Activations . | . . . Robots Corrupted . | . . . Combat Hostiles . | . . . Parts Fried . | . . . Impact Corruptions . | . . . Robots Melted . | . . . Combat Hostiles . | . . . Parts Melted . | . . . Heat Transferred 150 | . . 150 Parts Sabotaged . | . . . Parts Stolen . | . . . Parts Stripped . | . . . Power Chain Reactions 1 | . . 1 Alert | -11 -10 -10 ------- Run | Yrd Mat Min Peak Influence 196 | 5 196 48 Initial 3 | . 3 . Average 97 | . 131 16 Maximum Alert Level . | . . . Low Security (%) 100 | 100 100 100 Level 1 . | . . . Level 2 . | . . . Level 3 . | . . . Level 4 . | . . . Level 5 . | . . . High Security . | . . . Max Security . | . . . Squads Dispatched 1 | . 1 . Investigation 1 | . 1 . Extermination . | . . . Reinforcement . | . . . Assault . | . . . Garrison . | . . . Intercept . | . . . Searches Triggered . | . . . Construction Impeded . | . . . Haulers Reinforced . | . . . Active Scanning Responses . | . . . Cargo Convoy Interrupts . | . . . Stealth | -11 -10 -10 --------- Run | Yrd Mat Min Distress Signals . | . . . Communications Jammed . | . . . Distress Signals . | . . . Times Spotted 32 | . 12 20 Peak Tracking Total 16 | . 5 16 Tactical Retreats 1 | . 1 . Traps | -11 -10 -10 ------- Run | Yrd Mat Min Traps Triggered 3 | . 3 . Indirectly . | . . . Trap Hack Attempts . | . . . Triggered . | . . . Disarmed . | . . . Reprogrammed . | . . . Reused . | . . . Traps Extracted . | . . . Installed . | . . . Triggered . | . . . Machines | -11 -10 -10 ---------- Run | Yrd Mat Min Machines Disabled . | . . . Max in Single Turn . | . . . Machines Repaired . | . . . Machines Dismantled . | . . . Machines Sabotaged . | . . . Overloaded Fab Kills . | . . . Hacking | -11 -10 -10 --------- Run | Yrd Mat Min Machines Accessed . | . . . Terminals . | . . . Fabricators . | . . . Repair Stations . | . . . Recycling Units . | . . . Scanalyzers . | . . . Garrison Access . | . . . Total Hacks . | . . . Successful . | . . . Failed . | . . . Catastrophic . | . . . Database Lockouts . | . . . Manual . | . . . Terminals . | . . . Fabricators . | . . . Repair Stations . | . . . Recycling Units . | . . . Scanalyzers . | . . . Garrison Access . | . . . Terminal Hacks . | . . . Fabricator Hacks . | . . . Repair Station Hacks . | . . . Recycling Unit Hacks . | . . . Scanalyzer . | . . . Garrison Access Hacks . | . . . Unauthorized Hacks . | . . . Terminals . | . . . Fabricators . | . . . Repair Stations . | . . . Recycling Units . | . . . Scanalyzers . | . . . Garrison Access . | . . . Data Cores Recovered . | . . . Used . | . . . Hacking Detections . | . . . Full Trace Events . | . . . Feedback Events . | . . . Feedback Blocked . | . . . Robot Schematics Acquired . | . . . Robots Built . | . . . Authchips . | . . . Time . | . . . Total Robot Build Rating . | . . . Part Schematics Acquired . | . . . Parts Built . | . . . Authchips . | . . . Time . | . . . Total Part Build Rating . | . . . Parts Repaired . | . . . Time . | . . . Parts Recycled . | . . . Recycled Matter . | . . . Retrieved Matter . | . . . Retrieved Components . | . . . Parts Scanalyzed . | . . . Part Schematics Acquired . | . . . Parts Damaged . | . . . Bothacking | -11 -10 -10 ------------ Run | Yrd Mat Min Used RIF Installer . | . . . Robots Hacked . | . . . Non-combat . | . . . Combat . | . . . Robot Hacks Applied . | . . . Relay Couplers Released . | . . . Fabnet Peak Effective % . | . . . Robots Rewired . | . . . Allies Hacked . | . . . Hacks Repelled . | . . . Allies | -11 -10 -10 -------- Run | Yrd Mat Min Total Allies . | . . . Largest Group . | . . . Highest-Rated Group . | . . . Highest-Rated Ally . | . . . Total Orders . | . . . Ally Attacks . | . . . Total Damage . | . . . Kills . | . . . Allies Corrupted . | . . . Allies Melted . | . . . Intel | -11 -10 -10 ------- Run | Yrd Mat Min Robot Analysis Total . | . . . Derelict Logs Recovered . | . . . Drone Launches . | . . . Drone Recoveries . | . . . Exploration | -11 -10 -10 ------------- Run | Yrd Mat Min Turns Passed 577 | 43 412 122 Spaces Moved 410 | 30 303 77 Core 4 | 4 . . Treads . | . . . Legs . | . . . Wheels 406 | 26 303 77 Hover . | . . . Flight . | . . . Fastest Speed 50 | 50 80 105 Average Speed 95 | 82 94 105 Slowest Speed 200 | 200 105 125 Overloaded Moves . | . . . Propulsion Burnouts . | . . . Robots Hopped . | . . . Cave-ins Triggered . | . . . Exploration Rate (%) 27 | 4 56 21 Regions Visited 2 Branch Regions 1 Pre-discovered Areas 1 | . . 1 Known Exits Taken 1 | . 1 . Unknown Exits Taken 1 | 1 . . Scrap Searched . | . . . Spaces Dug . | . . . Terrain Destroyed 3 | . . 3 Melee . | . . . Projectile . | . . . AOE 3 | . . 3 Terrain Rammed . | . . . Walls Destroyed . | . . . Machines Disabled . | . . . Actions | -11 -10 -10 --------- Run | Yrd Mat Min Total 511 | 40 369 102 Wait 25 | . 15 10 Move 408 | 29 302 77 Hop . | . . . Pick Up 16 | 2 12 2 Fast Attach 9 | 7 2 . Attach 3 | . 1 2 Detach . | . . . Swap 6 | . 5 1 Drop 4 | . 3 1 Fire 40 | 2 29 9 Melee . | . . . Ram . | . . . Kick . | . . . Crush . | . . . Escape Stasis . | . . . Rewire . | . . . Trap . | . . . Miscellaneous . | . . . Route ------- -11/Scrapyard -10/Materials (discovered 2 exits: *Mat / *Min) -10/Mines History --------- Turn | Location | Event 18 | -11/Scrapyard | Discovered new exit (range 16) 44 | -11/Scrapyard | Entered Materials 185 | -10/Materials | Core integrity fell below 50% 315 | -10/Materials | Build established: Mutant 323 | -10/Materials | Discovered new exit (range 16) 387 | -10/Materials | Identified exit to Materials 445 | -10/Materials | Discovered new exit (range 11) 455 | -10/Materials | Identified exit to Mines 456 | -10/Materials | Entered Mines 495 | -10/Mines | Met a Derelict bent on vengeance 535 | -10/Mines | Learned location of Storage (-9) 544 | -10/Mines | Assembled infested the area 568 | -10/Mines | Core integrity fell below 20% 578 | -10/Mines | Destroyed by as-70608 with Assembled Blade Last Messages --------------- 00537_ E5-GTL(g): "We scattered so the Unaware couldn't effectively use their advantage in numbers, and I suggest you do the same." 00537_ E5-GTL(g) slips back into the shadows. 00544_ ALERT: Infestation in the mines, dispatching Demolisher response squad. 00556_ System corrupted: Component data lost. 00563_ as-70608 sneak attacks. 00563_ U-05 Engineer destroyed. 00565_ Wheel destroyed. 00565_ System corrupted by crushing effect (+1). 00568_ as-68491 suffers critical hit (Destroy). 00568_ Com. Wheel destroyed. 00575_ Chain reaction triggered in Corrupted Lgt. Ion Engine. 00575_ R-06 Scavenger destroyed. 00575_ S-10 Pest destroyed. 00575_ R-06 Scavenger destroyed. 00575_ Hvy. Assault Rifle destroyed. 00578_ Lgt. Nuclear Core destroyed. Map ----- +----------------------------------------------------+ | | | ?????????????????????????????????????????????????? | | ?????????????????????????????????????????????????? | | ?????????????????????????????????????????????????? | | ??????????????????###????????????????????????????? | | ?????????????????? ##???????????????????????????? | | ?????????????????? #???????????????????????????? | | ?????????????????? #???????????????????????????? | | ?????????????????? ###?????????????????????????? | | ??????????????????# ??????????????????????????? | | ???????###????????# #???????????????????????????? | | ??????? #??????### #???????????????????????????? | | ##?????# #?????## #???????????????????????????? | | ?????# #??#### #???????????????????????????? | | #????# #?## = #???????????????????????????? | | ##??# #?# =%=##???????????????????????????? | | ### ### *[%*=#????????????#???????????????? | | % *ss##??????????? ???????????????? | | ?# # %!! ##?????????? ???????????????? | | ?## ## ######==!= ##????????# #??????????????? | | ?## ## #????# %=[ ##???????# #??????????????? | | ?# ## #?????#*= ##??????# #??????????????? | | ?# #?????#* #??????# #??????????????? | | ## #####?????## #??????# #??????????????? | | # ##??????????## ##?????# #?????####?????? | | #????????????## @##????# #????## ##????? | | #?????????????## a###### ##???# #####? | | # ??????????????## aaa =##### ## | | #### ??????????????## a### %| # | | ???## ??????????????## #?# ! ## | | ????# ???????????????# #?## ### ## ##? | | ????# ##??????????????# #??######?# ### #?? | | ???? ##???????????????# #?????????# #?## #?? | | ???? #???????????????? #?????????# #??# #?? | | ???? #???????????????? #?????????# ??## ##?? | | ???? ##????????????????####????????? !%???####??? | | ?????##?????????????????????????????? ?????????? | | ????????????????????????????????????? ????????? | | ????????????????????????????????????? ????????? | | ????????????????????????????????????? ????????? | | ????????????????????????????????????? ????????? | | ????????????????????????????????????? ???????? | | ????????????????????????????????????? ?#???????? | | ????????????????????????????????????? #?????????? | | ????????????????????????????????????? #??????????? | | ?????????????????????????????????????????????????? | | ?????????????????????????????????????????????????? | | ?????????????????????????????????????????????????? | | ?????????????????????????????????????????????????? | | ?????????????????????????????????????????????????? | +----------------------------------------------------+ Best States ------------- Heat Dissipation 25 Energy Generation 14 Energy Capacity 250 Matter Stores 216 Matter Capacity 300 Sight Range 16 Terrain Scan Density 10 Evasion (%) 44 Item Schematics ----------------- None Robot Schematics ------------------ None Fabricated ------------ Nothing Alien Tech Used ----------------- None Achievements -------------- None Challenges ------------ None Game ------ Seed StorageAccelerationClaymores Manual? 0 Play Time 00:07:08 Cumulative 14.7 hours Start 2024.04.08 @ 22:48:06 End 2024.04.08 @ 23:08:47 Sessions 2 Manual Loads 0 Difficulty Rogue Special Mode None Game No. 19 Rogue 18 Adventurer 1 Explorer 0 Win Type - Total 0 Types 0/0/0/0/0/0/0/0/0 Lore% 8 Gallery% 28 Achievement% 23 Wizard Run 0 Options --------- Layout 1 ASCII 0 Keyboard 0 Movement Mouse Keybinds 0 Fullscreen 2 Font 32/SmallcapsGlow Map View 50x35 Zoom Use 0% Tactical HUD 1 Map Filters NONE Filters NONE Steam 1 RUN: 0ccdd315-db2d-4d3c-8daf-4caa4d6a1615